bitfinex-derivatives/quotes_ETHF0:USTF0_20230403
["timestamp","ask_amount","ask_price","bid_price","bid_amount"]
[1680508943517,3.3288038,1803.4,1803.0,3.2078]
[1680508943918,4.3288038,1803.4,1803.0,3.2078]
[1680508944110,3.3288038,1803.4,1803.0,3.2078]
[1680508944321,4.29440723,1803.3,1803.0,3.2078]
[1680508944510,4.2078,1803.3,1802.7,3.2078]
[1680508944714,7.72278845,1803.4,1802.7,3.2078]
[1680508945318,3.2078,1803.5,1802.8,1.0]
[1680508945516,3.2078,1803.5,1802.9,3.2078]
[1680508945722,7.6428,1803.5,1802.9,3.2078]
[1680508946022,7.6458,1803.3,1802.7,3.2078]
[1680508946213,8.6458,1803.3,1802.7,3.2078]
[1680508946516,4.435,1802.8,1802.3,3.2078]
[1680508946713,3.2078,1802.7,1802.3,3.2078]
[1680508946913,4.2078,1802.7,1802.3,3.2078]
[1680508947122,3.2078,1803.3,1802.5,7.6228]
[1680508947326,1.0,1803.2,1802.7,3.2078]
[1680508947518,3.2078,1803.1,1802.5,3.2078]
[1680508947713,12.82487161,1803.1,1802.3,3.2078]
[1680508947914,9.61707161,1803.1,1802.5,3.2078]
[1680508948220,3.2078,1803.3,1802.5,3.2078]
[1680508948416,3.2078,1803.3,1802.7,3.2078]
[1680508948627,3.2078,1803.3,1802.5,3.2078]
[1680508948828,3.2078,1803.1,1802.5,3.2078]
[1680508949127,3.2078,1803.1,1802.7,3.2078]
[1680508950116,3.2078,1803.1,1802.4,3.2078]
[1680508950314,7.6428,1802.9,1802.4,3.2078]
[1680508950823,6.31633169,1803.2,1802.2,0.0105701]
[1680508950824,7.6058,1803.1,1802.6,3.2078]
[1680508951123,6.12440076,1803.5,1802.8,3.2078]
[1680508951124,3.2078,1803.5,1802.8,3.2078]
[1680508951428,7.6458,1803.5,1802.8,3.2078]
[1680508951626,4.438,1803.2,1802.8,3.2078]
[1680508951925,3.2078,1803.1,1802.8,3.2078]
[1680508952315,4.435,1802.9,1802.5,3.2078]
[1680508955429,1.0,1802.8,1802.5,3.2078]
[1680508955930,1.0,1802.8,1802.3,3.2078]
[1680508956224,1.0,1802.5,1802.2,0.0105701]
[1680508956431,4.435,1802.6,1802.2,0.0105701]
[1680508956831,7.6428,1802.7,1802.2,0.0105701]
[1680508957030,4.435,1802.7,1802.2,0.0105701]
[1680508957225,4.95024049,1803.3,1802.6,5.576]
[1680508957430,0.55224049,1803.3,1802.7,8.7838]
[1680508957633,3.2078,1803.4,1802.7,8.79052256]
[1680508957838,1.0,1803.3,1802.7,3.21452256]
[1680508958027,3.2078,1803.2,1802.7,3.21452256]
[1680508958825,1.0,1803.4,1802.7,3.21452256]
[1680508959034,3.2078,1803.3,1802.7,3.21452256]
[1680508959333,3.2078,1803.3,1802.9,3.2078]
[1680508959532,3.2078,1803.5,1802.9,3.2078]
[1680508960141,3.2078,1803.5,1803.0,1.0]
[1680508960439,3.2078,1803.5,1802.9,3.2078]
[1680508960834,1.0,1803.4,1802.9,3.2078]
[1680508961234,3.2078,1803.5,1802.9,3.2078]
[1680508961435,3.2078,1803.5,1803.1,3.2078]
[1680508961841,4.2078,1803.5,1803.1,3.2078]
[1680508962039,3.2078,1803.5,1803.1,3.2078]
[1680508962236,4.9803,1803.7,1803.1,3.2078]
[1680508962434,2.33550888,1804.0,1803.5,3.2078]
[1680508962632,3.91549479,1805.0,1803.9,3.2078]
[1680508962842,3.2078,1804.8,1804.0,3.2078]
[1680508963142,3.2078,1804.4,1804.0,3.2078]
[1680508963339,4.438,1804.6,1804.0,3.2078]
[1680508963930,3.2078,1804.7,1803.7,5.576]
[1680508964135,4.548,1805.0,1804.4,3.2078]
[1680508964443,0.56177394,1805.7,1805.2,12.0]
[1680508964444,1.06094692,1805.7,1805.2,12.0]
[1680508964647,4.48687356,1805.6,1805.3,3.2078]
[1680508964942,7.0985992,1806.3,1805.8,17.0]
[1680508965146,0.04984019,1806.2,1806.1,3.2078]
[1680508965334,4.435,1806.2,1805.6,1.0]
[1680508965537,4.398,1805.7,1805.1,3.2078]
[1680508965739,4.438,1805.2,1804.8,3.2078]
[1680508965933,3.2078,1805.5,1804.5,20.2078]
[1680508965934,4.437,1805.0,1804.5,20.2078]
[1680508966143,3.2078,1805.5,1804.1,10.3106]
[1680508966144,7.73283548,1805.1,1804.8,17.0]
[1680508966443,9.6197,1805.5,1804.9,3.2078]
[1680508966642,0.04987046,1805.4,1805.0,4.2078]
[1680508966831,4.8665,1806.0,1805.2,3.2078]
[1680508966832,4.437,1805.7,1805.2,3.2078]
[1680508967037,4.437,1805.7,1804.6,4.2078]
[1680508967038,4.437,1805.3,1804.6,4.2078]
[1680508967346,4.398,1804.9,1804.6,3.2078]
[1680508967733,4.438,1804.7,1804.6,3.2078]
[1680508967947,4.438,1804.7,1804.4,3.2078]
[1680508968146,4.435,1804.5,1804.2,3.2078]
[1680508968450,3.318902,1804.6,1804.4,3.2078]
[1680508968744,4.437,1805.0,1804.4,3.2078]
[1680508968938,4.438,1804.8,1804.5,1.0]
[1680508969340,3.28946354,1804.7,1804.6,3.2078]
[1680508969848,3.29680322,1804.8,1804.6,3.2078]
[1680508970050,3.29680322,1804.8,1804.7,1.0]
[1680508970542,3.29680322,1804.8,1804.7,5.0]
[1680508970740,3.29680322,1804.8,1804.6,3.2078]
[1680508971040,4.437,1804.9,1804.7,6.0]
[1680508971243,9.4539,1805.1,1804.8,3.2078]
[1680508971437,4.438,1805.1,1804.9,1.0]
[1680508971835,3.36973697,1805.0,1804.9,1.0]
[1680508972440,3.35044782,1805.0,1804.9,1.0]
[1680508972640,3.35044782,1805.0,1804.9,6.0]
[1680508972846,4.438,1805.1,1804.9,18.0]
[1680508973244,4.438,1805.1,1804.9,5.0]
[1680508973542,3.37944497,1805.0,1804.8,5.0]
[1680508974344,3.37944497,1805.0,1804.9,1.0]
[1680508974647,9.31854199,1805.0,1804.8,5.0]
[1680508974943,7.79984612,1804.9,1804.6,3.2078]
[1680508975148,4.437,1804.7,1804.6,5.0]
[1680508975551,4.437,1804.7,1804.2,3.2078]
[1680508975850,4.437,1804.7,1804.6,5.0]
[1680508976149,5.76369631,1804.6,1804.5,5.0]
[1680508976347,13.9683284,1804.7,1804.5,5.0]
[1680508976542,3.30129477,1804.6,1804.5,5.0]
[1680508977252,3.30129477,1804.6,1804.2,8.2078]
[1680508977453,4.398,1804.3,1804.2,8.2078]
[1680508977643,4.398,1804.3,1804.2,5.0]
[1680508978048,4.438,1804.4,1804.2,8.2078]
[1680508978454,4.438,1804.4,1804.2,20.2078]
[1680508978644,4.438,1804.4,1804.3,1.0]
[1680508978851,3.2890069,1804.3,1804.2,20.2078]
[1680508979250,4.438,1804.4,1804.2,20.2078]
[1680508979448,4.438,1804.3,1804.0,3.2078]
[1680508979646,4.438,1804.3,1804.1,5.0]
[1680508979853,7.76811565,1804.3,1804.2,5.0]
[1680508980059,3.29802143,1804.2,1803.8,15.2078]
[1680508980354,4.438,1804.1,1803.8,20.2078]
[1680508980748,3.35015353,1804.0,1803.8,20.2078]
[1680508981356,4.398,1804.5,1803.8,3.2078]
[1680508981552,4.398,1804.5,1804.3,17.0]
[1680508981852,4.398,1804.5,1804.3,5.0]
[1680508982051,9.5506442,1804.4,1804.3,17.0]
[1680508982351,4.98587032,1804.7,1804.3,20.2078]
[1680508982559,4.98587032,1804.7,1804.5,5.0]
[1680508982859,3.29200684,1804.6,1804.5,5.0]
[1680508983056,9.4428394,1804.6,1804.5,5.0]
[1680508984362,17.0486394,1804.6,1804.1,3.2078]
[1680508984546,6.49980684,1804.6,1804.4,5.0]
[1680508984752,7.80354676,1804.5,1804.4,5.0]
[1680508985053,4.437,1804.5,1804.4,5.0]
[1680508985354,7.74962117,1804.5,1804.4,5.0]
[1680508987060,8.74962117,1804.5,1804.1,5.0]
[1680508987260,4.438,1804.2,1803.8,3.2078]
[1680508987560,4.438,1804.2,1804.1,17.0]
[1680508988051,13.69359201,1804.2,1803.9,5.0]
[1680508988360,4.398,1804.0,1803.9,5.0]
[1680508988760,11.46259123,1804.0,1803.9,5.0]
[1680508989461,10.46259123,1804.0,1803.9,5.0]
[1680508990258,4.398,1804.4,1804.3,17.0]
[1680508990459,6.63420181,1805.0,1804.3,3.2078]
[1680508990460,4.9301,1805.0,1804.3,3.2078]
[1680508990668,4.9301,1805.0,1804.9,17.0]
[1680508990862,7.6458,1805.1,1804.9,17.0]
[1680508991167,6.13093603,1805.0,1804.9,17.0]
[1680508991367,9.4141008,1805.0,1804.9,17.0]
[1680508991563,13.8511008,1805.0,1804.9,17.0]
[1680508992769,13.8511008,1805.0,1804.6,17.0]
[1680508992970,4.438,1804.7,1804.6,17.0]
[1680508993270,17.20179262,1804.7,1804.4,17.0]
[1680508993561,4.398,1804.5,1804.4,17.0]
[1680508993969,7.67116757,1804.5,1804.4,17.0]
[1680508994269,3.27316757,1804.5,1804.4,20.2078]
[1680508994568,3.2078,1804.9,1804.6,17.0]
[1680508994762,4.398,1804.7,1804.6,17.0]
[1680508994958,7.6058,1804.7,1804.3,17.0]
[1680508995164,4.398,1804.4,1804.3,17.0]
[1680508995572,6.37067828,1804.4,1804.3,20.2078]
[1680508995864,1.0,1804.8,1804.7,17.0]
[1680508996070,4.398,1804.9,1804.7,17.0]
[1680508996270,7.6058,1804.9,1804.7,17.0]
[1680508996465,3.357398,1804.8,1804.7,17.0]
[1680508996671,13.9089446,1804.8,1804.7,17.0]
[1680508997266,9.4719446,1804.8,1804.7,17.0]
[1680508997461,4.438,1805.0,1804.7,17.0]
[1680508997662,4.438,1805.0,1804.9,17.0]
[1680508998169,13.58136564,1805.0,1804.9,17.0]
[1680508998470,4.98056046,1805.3,1804.9,17.0]
[1680508998773,4.98056046,1805.3,1805.1,17.0]
[1680508998964,0.54256046,1805.3,1805.1,17.0]
[1680508999162,3.37015343,1805.2,1805.1,17.0]
[1680508999566,9.29096053,1805.5,1805.0,4.2078]
[1680508999567,4.9570961,1805.5,1805.3,17.0]
[1680509000067,4.9570961,1805.5,1805.4,1.0]
[1680509000265,5.00293554,1805.5,1805.3,17.0]
[1680509000583,7.6058,1805.7,1805.1,3.2078]
[1680509000770,0.04583851,1805.6,1805.4,17.0]
[1680509001068,0.04583851,1805.6,1805.5,1.0]
[1680509001666,0.04583851,1805.6,1805.4,17.0]
[1680509001872,9.00680089,1805.6,1805.4,17.0]
[1680509002168,0.54907298,1805.7,1805.6,17.0]
[1680509002369,0.04583576,1805.7,1805.6,17.0]
[1680509002667,5.67670329,1805.7,1805.6,17.0]
[1680509002872,5.67670329,1805.7,1805.2,4.2078]
[1680509002873,5.67670329,1805.7,1805.2,3.2078]
[1680509003073,4.435,1805.4,1805.3,17.0]
[1680509003667,10.06712416,1805.4,1805.3,17.0]
[1680509003865,13.27492416,1805.4,1805.3,17.0]
[1680509004076,19.15813256,1805.4,1805.3,17.0]
[1680509004374,19.15813403,1805.4,1805.3,17.0]
[1680509005269,19.15813403,1805.4,1805.3,12.0]
[1680509005566,5.576,1805.3,1804.8,17.0]
[1680509005768,4.435,1804.9,1804.8,16.4427645]
[1680509005973,10.06712416,1804.9,1804.8,16.4427645]
[1680509006167,14.19408926,1804.9,1804.8,16.4427645]
[1680509007772,15.90139875,1804.9,1804.8,16.4427645]
[1680509008378,14.19408926,1804.9,1804.4,3.2078]
[1680509008571,1.0,1804.6,1804.4,3.2078]
[1680509008767,4.398,1804.7,1804.5,16.4427645]
[1680509008964,6.63454595,1804.6,1804.5,16.4427645]
[1680509009473,5.63454595,1804.6,1804.5,16.4427645]
[1680509009877,6.63454595,1804.6,1804.5,16.4427645]
[1680509010077,5.63454595,1804.6,1804.5,16.4427645]
[1680509010673,5.63454595,1804.7,1804.5,16.4427645]
[1680509010879,5.63454595,1804.6,1804.5,16.4427645]
[1680509012369,10.03254595,1804.6,1804.5,16.4427645]
[1680509013073,11.03254595,1804.6,1804.5,16.4427645]
[1680509013780,10.03254595,1804.6,1804.5,16.4427645]
[1680509015175,11.03254595,1804.6,1804.5,16.4427645]
[1680509015602,12.77070784,1804.6,1804.5,16.4427645]
[1680509016179,15.97850784,1804.6,1804.5,16.4427645]
[1680509016480,21.75805205,1804.6,1804.5,16.4427645]
[1680509016674,20.75805205,1804.6,1804.5,16.4427645]
[1680509017480,20.75805205,1804.6,1804.1,16.4427645]
[1680509017777,4.437,1804.2,1804.1,15.4620645]
[1680509018182,10.07154595,1804.2,1804.1,15.4620645]
[1680509018680,11.07154595,1804.2,1804.1,15.4620645]
[1680509019185,16.83742078,1804.2,1804.1,15.4620645]
[1680509019577,16.83742078,1804.2,1803.8,3.2078]
[1680509019876,5.63717684,1804.1,1803.9,15.4620645]
[1680509020083,11.68433581,1804.1,1803.9,15.4620645]
[1680509020282,14.79199608,1804.0,1803.9,15.4620645]
[1680509021278,9.15481924,1804.0,1803.9,15.4620645]
[1680509021480,13.58981924,1804.0,1803.9,15.4620645]
[1680509022986,13.58981924,1804.0,1803.6,18.6698645]
[1680509023186,4.438,1803.8,1803.6,18.6698645]
[1680509023385,4.398,1803.7,1803.6,8.2078]
[1680509023589,13.77112032,1803.7,1803.6,8.2078]
[1680509023787,4.398,1803.7,1803.6,8.2078]
[1680509023988,11.61550159,1803.7,1803.6,8.2078]
[1680509024783,11.61550159,1803.7,1803.6,5.0]
[1680509024985,11.61550159,1803.7,1803.5,10.4620645]
[1680509025184,11.61550159,1803.7,1803.6,5.0]
[1680509025586,10.61550159,1803.7,1803.6,5.0]
[1680509025885,10.61550159,1803.7,1803.4,18.6698645]
[1680509026087,4.438,1803.5,1803.4,18.6698645]
[1680509026487,10.29619471,1803.5,1803.4,18.6698645]
[1680509028496,13.30455791,1804.0,1803.9,15.4620645]
[1680509028695,4.437,1804.0,1803.9,15.4620645]
[1680509029094,7.77495533,1804.0,1803.9,15.4620645]
[1680509029392,14.13350481,1804.0,1803.9,15.4620645]
[1680509029891,14.13350481,1804.0,1803.4,3.2078]
[1680509029892,26.78771677,1804.0,1803.4,3.2078]
[1680509030088,4.398,1803.6,1803.4,3.2078]
[1680509030487,6.39501881,1803.5,1803.4,3.2078]
[1680509031290,4.438,1803.7,1803.4,3.2078]
[1680509031992,4.398,1803.9,1803.6,3.2078]
[1680509032298,4.398,1803.9,1803.8,3.2078]
[1680509032990,0.54282469,1804.2,1803.8,3.2078]
[1680509033187,15.46316189,1804.7,1804.0,3.2078]
[1680509033384,5.63570613,1804.6,1804.4,1.0]
[1680509033587,4.398,1804.6,1804.3,3.2078]
[1680509033891,9.28431757,1804.5,1804.3,3.2078]
[1680509034090,9.28431757,1804.5,1804.1,3.2078]
[1680509034091,4.398,1804.4,1804.1,3.2078]
[1680509034296,5.398,1804.4,1804.1,3.2078]
[1680509034592,5.435,1804.2,1803.9,3.2078]
[1680509035396,4.435,1804.2,1803.9,3.2078]
[1680509035797,4.435,1804.2,1804.1,3.2078]
[1680509036299,10.6812973,1804.2,1804.1,3.2078]
[1680509037100,4.398,1804.5,1804.1,3.2078]
[1680509037300,4.398,1804.5,1804.3,3.2078]
[1680509037604,4.398,1804.5,1804.2,3.2078]
[1680509037895,6.43363446,1804.4,1804.2,3.2078]
[1680509038194,4.398,1804.5,1804.2,3.2078]
[1680509038396,1.0,1804.4,1803.9,3.2078]
[1680509038595,6.80392715,1804.4,1803.9,3.2078]
[1680509038797,6.80392715,1804.4,1803.8,1.0]
[1680509038798,4.435,1804.3,1804.1,3.2078]
[1680509039703,7.19438071,1804.2,1803.9,3.2078]
[1680509040005,4.435,1804.0,1803.9,3.2078]
[1680509040701,4.435,1804.0,1803.7,3.2078]
[1680509040998,4.438,1803.9,1803.5,3.2078]
[1680509041197,7.72878577,1803.9,1803.5,3.2078]
[1680509041399,9.63826728,1803.9,1803.7,3.2078]
[1680509041702,5.398,1804.1,1803.7,3.2078]
[1680509042202,3.29508679,1804.0,1803.7,3.2078]
[1680509042503,6.09378003,1804.0,1803.9,3.2078]
[1680509042699,1.0,1804.1,1803.9,3.2078]
[1680509042900,4.437,1804.1,1803.9,3.2078]
[1680509043203,4.437,1804.1,1803.7,3.2078]
[1680509043504,3.28194608,1804.0,1803.9,3.2078]
[1680509043705,3.28194608,1804.0,1803.7,3.2078]
[1680509043905,4.28194608,1804.0,1803.7,3.2078]
[1680509044304,1.0,1803.9,1803.7,3.2078]
[1680509044701,5.438,1803.9,1803.7,3.2078]
[1680509045004,3.318258,1803.8,1803.5,3.2078]
[1680509046512,4.398,1803.6,1803.5,3.2078]
[1680509049503,4.93982121,1803.6,1803.5,3.2078]
[1680509049703,11.03826851,1803.6,1803.5,3.2078]
[1680509050402,1.0,1803.5,1803.2,3.2078]
[1680509050703,5.91831546,1803.4,1803.2,3.2078]
[1680509050906,5.91831546,1803.4,1803.0,3.2078]
[1680509051107,1.0,1803.3,1803.0,3.2078]
[1680509052100,4.438,1803.2,1803.0,3.2078]
[1680509052297,1.0,1803.1,1803.0,3.2078]
[1680509052493,1.0,1803.1,1802.8,3.2078]
[1680509052903,5.92925852,1803.0,1802.8,3.2078]
[1680509053114,10.32725852,1803.0,1802.6,3.2078]
[1680509053305,1.0,1802.9,1802.6,3.2078]
[1680509053897,4.398,1802.8,1802.6,3.2078]
[1680509054100,4.398,1802.8,1802.2,1.0]
[1680509054101,4.398,1802.8,1802.4,3.2078]
[1680509054297,7.07517937,1802.7,1802.4,3.2078]
[1680509054699,4.438,1802.6,1802.4,3.2078]
[1680509054893,5.438,1802.6,1802.4,3.2078]
[1680509055098,5.97082234,1802.5,1802.4,3.2078]
[1680509055298,6.97082234,1802.5,1802.4,3.2078]
[1680509056009,11.36882234,1802.5,1802.2,3.2078]
[1680509056201,4.438,1802.2,1802.0,3.2078]
[1680509056403,1.0,1802.4,1801.7,3.2078]
[1680509056404,4.438,1802.1,1801.7,3.2078]
[1680509056608,4.438,1802.1,1801.7,3.14896581]
[1680509056609,4.435,1801.9,1801.7,3.14896581]
[1680509056813,4.435,1801.9,1801.5,3.2078]
[1680509057007,0.92749504,1801.8,1801.5,3.2078]
[1680509057208,1.92749504,1801.8,1801.5,3.2078]
[1680509057511,4.23066325,1801.8,1801.3,3.2078]
[1680509057818,0.92749504,1801.8,1801.3,3.2078]
[1680509058113,0.92749504,1801.8,1801.5,3.2078]
[1680509058612,0.92749504,1801.8,1801.2,1.0]
[1680509058613,0.92749504,1801.8,1801.3,3.2078]
[1680509058810,4.398,1801.6,1801.3,3.2078]
[1680509059111,4.438,1801.8,1801.3,3.2078]
[1680509059311,4.48970656,1802.0,1801.5,3.2078]
[1680509059513,4.398,1802.0,1801.7,3.2078]
[1680509060313,4.398,1802.0,1801.5,3.2078]
[1680509060624,4.398,1801.8,1801.5,3.2078]
[1680509061306,4.398,1802.0,1801.7,3.2078]
[1680509061507,4.9577,1802.4,1801.9,3.2078]
[1680509061703,3.2078,1802.7,1802.3,3.2078]
[1680509061908,7.6458,1802.7,1802.3,3.2078]
[1680509062413,6.08749831,1802.6,1802.1,3.2078]
[1680509062608,3.2078,1802.7,1802.3,3.2078]
[1680509062817,3.2078,1802.7,1802.0,0.01210972]
[1680509062818,7.6058,1802.9,1802.5,3.2078]
[1680509063015,7.6058,1802.9,1802.4,1.0]
[1680509063320,7.6058,1802.9,1802.3,3.2078]
[1680509063516,6.27483684,1802.8,1802.5,3.2078]
[1680509063818,7.6058,1802.9,1802.6,1.0]
[1680509064013,4.398,1802.9,1802.6,1.0]
[1680509064215,3.2078,1803.2,1802.7,3.2078]
[1680509064821,4.438,1803.1,1802.7,3.2078]
[1680509065117,10.57390255,1803.1,1802.5,3.2078]
[1680509066015,4.2078,1803.0,1802.5,3.2078]
[1680509066315,6.93192318,1802.9,1802.5,3.2078]
[1680509066516,11.36692318,1802.9,1802.5,3.2078]
[1680509066714,4.438,1802.7,1802.3,3.2078]
[1680509067820,4.438,1803.0,1802.5,3.2078]
[1680509069216,4.398,1803.2,1802.7,3.2078]
[1680509069524,4.398,1803.2,1802.9,3.2078]
[1680509069715,3.2078,1803.3,1802.9,3.2078]
[1680509070024,3.2078,1803.5,1803.2,1.0]
[1680509070517,3.2078,1803.5,1803.1,3.2078]
[1680509071317,7.6058,1803.5,1803.1,3.2078]
[1680509071924,4.438,1803.3,1802.9,3.2078]
[1680509072818,7.6428,1803.5,1803.1,3.2078]
[1680509073023,7.6428,1803.5,1802.9,3.2078]
[1680509073522,5.98901628,1803.4,1802.9,3.2078]
[1680509073926,3.2078,1803.3,1802.9,3.2078]
[1680509074120,5.98901628,1803.4,1802.9,3.2078]
[1680509074315,4.435,1803.5,1802.9,3.2078]
[1680509074316,4.438,1803.3,1802.9,3.2078]
[1680509075646,4.438,1803.3,1802.7,4.2078]
[1680509075920,4.438,1803.3,1802.9,3.2078]
[1680509076122,4.398,1803.5,1802.9,3.2078]
[1680509076325,3.75098986,1803.7,1803.1,3.2078]
[1680509076918,3.75098986,1803.7,1802.7,1.0]
[1680509076919,9.64103917,1803.6,1803.2,0.00287715]
[1680509077222,1.0,1803.5,1802.9,3.2078]
[1680509077429,9.64103917,1803.6,1803.1,3.2078]
[1680509077724,6.2798256,1803.6,1803.1,3.2078]
[1680509078230,9.4876256,1803.6,1803.1,3.2078]
[1680509078625,1.0,1803.5,1803.1,3.2078]
[1680509078820,9.4876256,1803.6,1803.1,3.2078]
[1680509079024,6.33143568,1803.4,1803.1,3.2078]
[1680509079220,6.20722493,1803.5,1803.1,3.2078]
[1680509079830,3.2078,1803.6,1803.1,3.2078]
[1680509081222,3.2078,1803.6,1802.7,4.2078]
[1680509081420,3.2078,1803.4,1802.7,3.2078]
[1680509081827,5.19375937,1803.3,1802.7,3.2078]
[1680509082130,3.2078,1803.2,1802.7,3.2078]
[1680509082327,3.2078,1803.2,1802.5,7.9325]
[1680509082530,6.01573847,1803.1,1802.8,0.00595331]
[1680509082832,6.01573847,1803.1,1802.5,3.2078]
[1680509083229,3.2078,1803.4,1802.9,3.2078]
[1680509083633,3.2078,1803.4,1802.7,3.2078]
[1680509083933,3.2078,1803.4,1802.9,3.2078]
[1680509084732,4.2078,1803.6,1802.9,3.2078]
[1680509085031,3.2078,1803.4,1802.9,3.2078]
[1680509085635,1.0,1803.6,1802.9,3.2078]
[1680509085831,3.2078,1803.4,1802.9,3.2078]
[1680509087433,3.2078,1803.4,1802.6,3.2152919]
[1680509087732,4.34587013,1803.3,1802.6,3.2152919]
[1680509088041,4.2802196,1803.2,1802.6,3.2152919]
[1680509088332,6.13532021,1803.1,1802.6,3.2152919]
[1680509089138,3.2078,1803.0,1802.6,3.2152919]
[1680509089434,3.2078,1803.2,1802.6,3.2152919]
[1680509090133,6.2725246,1803.1,1802.6,3.2152919]
[1680509090333,3.2078,1802.8,1802.6,0.0074919]
[1680509090536,1.0,1802.7,1802.6,0.0074919]
[1680509090731,1.52889746,1802.7,1802.2,3.2078]
[1680509090935,0.52889746,1802.7,1802.2,3.2078]
[1680509092139,3.24207513,1802.6,1802.2,3.2078]
[1680509092531,3.24207513,1802.6,1801.7,0.57255662]
[1680509092532,5.576,1802.3,1801.6,3.78035662]
[1680509092731,3.2078,1802.2,1801.6,3.2078]
[1680509093034,9.50982307,1802.2,1801.6,3.2078]
[1680509093733,3.2078,1802.0,1801.3,3.2078]
[1680509093932,3.2078,1801.8,1801.3,3.2078]
[1680509095638,3.2078,1802.0,1801.4,1.0]
[1680509095932,3.2078,1802.0,1801.5,3.2078]
[1680509096130,0.56194171,1802.2,1801.7,3.2078]
[1680509096325,1.0,1802.3,1801.7,3.2078]
[1680509096530,3.2078,1802.2,1801.7,3.2078]
[1680509096735,9.04794534,1802.2,1801.7,3.2078]
[1680509097235,7.09240252,1802.5,1801.9,3.2078]
[1680509097436,2.25120252,1802.5,1801.9,3.2078]
[1680509097740,4.2078,1802.6,1801.9,3.2078]
[1680509098031,0.03972774,1802.4,1801.8,3.2078]
[1680509098633,3.24752774,1802.4,1801.8,3.2078]
[1680509098831,4.24752774,1802.4,1801.6,3.2078]
[1680509099137,5.85464157,1802.3,1801.6,3.2078]
[1680509099640,5.85464157,1802.3,1801.8,3.2078]
[1680509099837,3.2078,1802.2,1801.8,3.2078]
[1680509100034,3.2078,1802.2,1801.6,3.2078]
[1680509100739,3.2078,1802.2,1801.8,3.2078]
[1680509100936,3.24752774,1802.4,1801.8,3.2078]
[1680509103432,7.03201033,1802.3,1801.8,3.2078]
[1680509104340,6.03201033,1802.3,1801.8,3.2078]
[1680509106040,0.03972774,1802.4,1802.0,3.2078]
[1680509106344,0.55599382,1802.6,1802.2,3.2078]
[1680509106535,3.2078,1802.7,1802.2,3.2078]
[1680509108043,3.2078,1802.9,1802.4,3.2078]
[1680509108338,3.74987016,1803.1,1802.4,3.2078]
[1680509108540,3.2078,1803.1,1802.4,3.2078]
[1680509108930,9.10573714,1803.0,1802.4,3.2078]
[1680509109330,3.36321373,1802.9,1802.6,3.2078]
[1680509109531,3.2078,1803.3,1802.7,1.0]
[1680509109733,3.2078,1803.3,1802.8,3.2078]
[1680509110343,6.08649859,1803.2,1802.8,3.2078]
[1680509110641,3.2078,1803.3,1802.8,3.2078]
[1680509110941,4.94596189,1803.7,1803.0,3.2078]
[1680509111242,3.2078,1803.7,1803.0,3.2078]
[1680509111442,4.2078,1803.7,1803.2,3.2078]
[1680509111844,3.2078,1803.7,1803.2,3.2078]
[1680509112047,3.2078,1803.7,1803.1,3.2078]
[1680509112532,2.212,1803.4,1803.2,0.00287715]
[1680509114138,5.4078,1803.7,1803.3,3.2078]
[1680509114544,5.4078,1803.7,1803.3,4.2078]
[1680509114842,2.2,1803.7,1803.3,4.2078]
[1680509115048,2.211,1803.9,1803.5,3.2078]
[1680509115257,2.211,1803.9,1803.7,3.2078]
[1680509115544,2.211,1803.9,1803.6,3.2078]
[1680509115948,5.4198,1804.1,1803.6,5.4238]
[1680509116737,2.212,1804.1,1803.8,3.2078]
[1680509117243,2.212,1804.1,1803.6,5.4238]
[1680509117647,2.218,1803.9,1803.6,3.2078]
[1680509119941,2.211,1804.1,1803.8,3.2078]
[1680509120347,2.211,1804.1,1804.0,3.2078]
[1680509120655,2.211,1804.1,1803.7,3.2078]
[1680509120953,2.211,1804.1,1803.8,1.0]
[1680509121449,2.211,1804.1,1803.9,3.2078]
[1680509121849,2.211,1804.1,1803.7,4.2078]
[1680509122544,2.211,1804.1,1803.9,3.2078]
[1680509122745,2.211,1804.1,1804.0,1.0]
[1680509123142,2.211,1804.1,1803.7,4.2078]
[1680509123342,2.211,1804.1,1803.9,3.2078]
[1680509123748,2.211,1804.1,1804.0,1.0]
[1680509124348,2.211,1804.1,1803.9,3.2078]
[1680509124748,2.211,1804.1,1803.7,4.2078]
[1680509126057,2.211,1804.1,1803.9,3.2078]
[1680509126556,2.211,1804.1,1803.7,4.2078]
[1680509126754,2.211,1804.1,1803.9,3.2078]
[1680509127453,2.21,1804.4,1804.0,3.216]
[1680509127958,2.218,1804.2,1803.9,3.2078]
[1680509130263,2.2,1804.0,1803.9,3.2078]
[1680509130452,10.004,1804.0,1802.6,10.7507]
[1680509130652,3.2078,1803.7,1803.0,3.2078]
[1680509130856,2.212,1803.1,1803.0,3.2078]
[1680509131658,2.212,1803.1,1802.8,3.2078]
[1680509131863,2.218,1802.9,1802.8,3.2078]
[1680509132358,2.218,1802.9,1802.8,3.21375331]
[1680509133757,2.21,1802.9,1802.8,0.00595331]
[1680509134163,5.4178,1802.9,1802.4,3.2078]
[1680509134365,2.2,1802.5,1802.4,3.2078]
[1680509135461,2.218,1802.5,1802.2,3.2078]
[1680509135766,2.218,1802.3,1802.2,3.2078]
[1680509137051,2.218,1802.3,1802.0,3.2078]
[1680509137254,2.218,1802.3,1802.1,1.0]
[1680509140068,2.218,1802.3,1802.0,3.2078]
[1680509141873,3.2078,1802.4,1802.0,3.2078]
[1680509141874,2.211,1802.1,1802.0,3.2078]